fUST/lending_fUST_20250523
["ID","MTS","AMOUNT","RATE_DAILY","PERIOD"]
[362110157,1748002255247,-430.0,0.00021513,2]
[362110159,1748002255257,-430.0,0.00021513,2]
[362110161,1748002255266,-430.0,0.00021513,2]
[362110163,1748002255276,-430.0,0.00021513,2]
[362110165,1748002255286,-430.0,0.00021513,2]
[362110167,1748002255295,-430.0,0.00021513,2]
[362110169,1748002255307,-430.0,0.00021513,2]
[362110171,1748002255316,-430.0,0.00021513,2]
[362110173,1748002255326,-430.0,0.00021513,2]
[362110175,1748002255336,-555.54529755,0.00021513,2]
[362110177,1748002255346,-175.10904033,0.00021513,2]
[362110179,1748002255356,-430.0,0.00021513,2]
[362110182,1748002255366,-430.0,0.00021513,2]
[362110183,1748002255376,-430.0,0.00021513,2]
[362110185,1748002255385,-430.0,0.00021513,2]
[362110187,1748002255395,-430.0,0.00021513,2]
[362110189,1748002255404,-430.0,0.00021513,2]
[362110191,1748002255414,-430.0,0.00021513,2]
[362110193,1748002255424,-430.0,0.00021513,2]
[362110195,1748002255434,-430.0,0.00021513,2]
[362110198,1748002255444,-430.0,0.00021513,2]
[362110199,1748002255454,-430.0,0.00021513,2]
[362110201,1748002255465,-309.962197,0.00021513,2]
[362110204,1748002255479,-309.962197,0.00021513,2]
[362110206,1748002255490,-151.0,0.00021513,2]
[362110207,1748002255500,-276.298855,0.00021513,2]
[362110210,1748002255511,-151.0,0.00021513,2]
[362110211,1748002255522,-151.0,0.00021513,2]
[362110213,1748002255532,-322.185845,0.00021513,2]
[362110215,1748002255543,-322.185845,0.00021513,2]
[362110218,1748002255554,-518.16,0.00021535,2]
[362110220,1748002255564,-430.0,0.00021535,2]
[362110221,1748002255574,-430.0,0.00021535,2]
[362110223,1748002255585,-430.0,0.00021535,2]
[362110226,1748002255595,-576.0,0.00021535,2]
[362110227,1748002255605,-430.0,0.00021535,2]
[362110229,1748002255615,-430.0,0.00021536,2]
[362110232,1748002255625,-430.0,0.00021536,2]
[362110234,1748002255636,-430.0,0.00021536,2]
[362110236,1748002255647,-508.14,0.00021536,2]
[362110238,1748002255657,-430.0,0.00021536,2]
[362110240,1748002255668,-430.0,0.00021536,2]
[362110242,1748002255678,-430.0,0.00021536,2]
[362110243,1748002255688,-430.0,0.00021536,2]
[362110245,1748002255698,-430.0,0.00021536,2]
[362110247,1748002255707,-430.0,0.00021536,2]
[362110249,1748002255718,-430.0,0.00021536,2]
[362110251,1748002255731,-430.0,0.00021536,2]
[362110253,1748002255743,-430.0,0.00021536,2]
[362110255,1748002255754,-430.0,0.00021536,2]
[362110257,1748002255764,-430.0,0.00021536,2]
[362110259,1748002255774,-430.0,0.00021536,2]
[362110261,1748002255784,-430.0,0.00021536,2]
[362110263,1748002255793,-430.0,0.00021536,2]
[362110265,1748002255803,-430.0,0.00021546,2]
[362110267,1748002255813,-430.0,0.00021546,2]
[362110269,1748002255825,-430.0,0.00021546,2]
[362110271,1748002255834,-430.0,0.00021547,2]
[362110273,1748002255844,-430.0,0.00021547,2]
[362110275,1748002255854,-430.0,0.00021547,2]
[362110277,1748002255864,-430.0,0.00021547,2]
[362110279,1748002255874,-430.0,0.00021547,2]
[362110281,1748002255885,-430.0,0.00021547,2]
[362110284,1748002255895,-430.0,0.00021547,2]
[362110286,1748002255905,-430.0,0.00021547,2]
[362110288,1748002255915,-400.13618975,0.00021547,2]
[362110290,1748002255925,-433.19788648,0.00021547,2]
[362110292,1748002255935,-524.54,0.00021547,2]
[362110294,1748002255945,-430.0,0.00021547,2]
[362110296,1748002255955,-430.0,0.00021547,2]
[362110298,1748002255965,-430.0,0.00021547,2]
[362110300,1748002255975,-430.0,0.00021547,2]
[362110302,1748002255987,-430.0,0.00021547,2]
[362110304,1748002255997,-430.0,0.00021547,2]
[362110306,1748002256007,-430.0,0.00021547,2]
[362110307,1748002256016,-430.0,0.00021547,2]
[362110310,1748002256027,-430.0,0.00021547,2]
[362110312,1748002256037,-341.72571912,0.00021557,2]
[362110314,1748002256046,-430.0,0.00021557,2]
[362110316,1748002256056,-430.0,0.00021557,2]
[362110317,1748002256066,-390.0,0.00021557,2]
[362110320,1748002256077,-400.0,0.00021557,2]
[362110321,1748002256087,-430.0,0.00021557,2]
[362110324,1748002256097,-154.75029064,0.00021557,2]
[362110325,1748002256107,-430.0,0.00021557,2]
[362110328,1748002256117,-430.0,0.00021557,2]
[362110330,1748002256128,-430.0,0.00021557,2]
[362110332,1748002256138,-430.0,0.00021557,2]
[362110334,1748002256149,-430.0,0.00021557,2]
[362110336,1748002256160,-475.78,0.00021557,2]
[362110338,1748002256171,-430.0,0.00021557,2]
[362110340,1748002256181,-450.0,0.00021557,2]
[362110342,1748002256192,-430.0,0.00021557,2]
[362110344,1748002256202,-430.0,0.00021557,2]
[362110346,1748002256212,-430.0,0.00021557,2]
[362110348,1748002256223,-430.0,0.00021557,2]
[362110350,1748002256238,-430.0,0.00021557,2]
[362110352,1748002256248,-430.0,0.00021557,2]
[362110354,1748002256258,-430.0,0.00021557,2]
[362110356,1748002256268,-430.0,0.00021557,2]
[362110358,1748002256278,-430.0,0.00021557,2]
[362110360,1748002256288,-370.0,0.00021567,2]
[362110362,1748002256297,-459.62035262,0.00021583,2]
[362110364,1748002256307,-430.0,0.00021583,2]
[362110366,1748002256317,-430.0,0.00021583,2]
[362110368,1748002256327,-373.05181751,0.00021583,2]
[362110370,1748002256337,-430.0,0.00021583,2]
[362110372,1748002256347,-430.0,0.00021583,2]
[362110374,1748002256356,-430.0,0.00021583,2]
[362110376,1748002256366,-450.39167617,0.00021624,5]
[362110378,1748002256376,-369.618,0.00021651,2]
[362110380,1748002256386,-846.67159378,0.00021674,2]
[362110382,1748002256396,-430.0,0.00021777,2]
[362110384,1748002256407,-288.37206942,0.00021781,2]
[362110386,1748002256417,-294.08,0.00021781,2]
[362110388,1748002256427,-151.0,0.00021783,2]
[362110390,1748002256437,-152.577471,0.00021783,2]
[362110392,1748002256447,-276.298849,0.00021783,2]
[362110394,1748002256457,-151.0,0.00021783,2]
[362110396,1748002256467,-322.185845,0.00021783,2]
[362110398,1748002256480,-322.185851,0.00021783,2]
[362110413,1748002256622,-430.0,0.00021787,2]
[362110415,1748002256633,-430.0,0.00021787,2]
[362110417,1748002256644,-450.39167617,0.00021797,6]
[362110419,1748002256654,-430.0,0.00021809,2]
[362110421,1748002256664,-430.0,0.00021809,2]
[362110423,1748002256675,-430.0,0.00021809,2]
[362110426,1748002256686,-182.07,0.00021809,2]
[362110428,1748002256696,-430.0,0.0002181,2]
[362110430,1748002256706,-430.0,0.0002181,2]
[362110431,1748002256715,-430.0,0.0002181,2]
[362110433,1748002256725,-470.12,0.0002181,2]
[362110435,1748002256738,-430.0,0.0002181,2]
[362110437,1748002256747,-430.0,0.0002181,2]
[362110439,1748002256759,-430.0,0.0002181,2]
[362110441,1748002256769,-430.0,0.0002181,2]
[362110443,1748002256779,-430.0,0.0002181,2]
[362110445,1748002256789,-430.0,0.0002181,2]
[362110446,1748002256799,-430.0,0.0002181,2]
[362110448,1748002256809,-430.0,0.0002181,2]
[362110450,1748002256819,-430.0,0.0002181,2]
[362110452,1748002256830,-430.0,0.0002181,2]
[362110454,1748002256840,-251.99,0.0002182,2]
[362110456,1748002256850,-430.0,0.0002182,2]
[362110458,1748002256860,-430.0,0.0002182,2]
[362110460,1748002256870,-1000.0,0.00021821,2]
[362110463,1748002256880,-430.0,0.00021821,2]
[362110465,1748002256893,-430.0,0.00021821,2]
[362110467,1748002256902,-430.0,0.00021821,2]
[362110469,1748002256912,-430.0,0.00021821,2]
[362110471,1748002256922,-430.0,0.00021831,2]
[362110473,1748002256933,-430.0,0.00021831,2]
[362110475,1748002256942,-319.8,0.00021831,2]
[362110477,1748002256952,-430.0,0.00021831,2]
[362110479,1748002256962,-421.55,0.00021831,2]
[362110480,1748002256972,-430.0,0.00021831,2]
[362110482,1748002256985,-430.0,0.00021831,2]
[362110484,1748002256995,-430.0,0.00021831,2]
[362110486,1748002257005,-430.0,0.00021831,2]
[362110488,1748002257015,-430.0,0.00021831,2]
[362110490,1748002257025,-344.29,0.00021831,2]
[362110492,1748002257035,-430.0,0.00021831,2]
[362110494,1748002257045,-309.962197,0.00021844,2]
[362110495,1748002257055,-309.962197,0.00021844,2]
[362110496,1748002257065,-187.61,0.00021857,2]
[362110497,1748002257075,-430.0,0.00021857,2]
[362110498,1748002257085,-430.0,0.00021857,2]
[362110499,1748002257095,-217.8,0.00021857,2]
[362110500,1748002257104,-430.0,0.00021857,2]
[362110501,1748002257114,-5000.0,0.00021917,2]
[362110502,1748002257123,-5000.0,0.00021917,2]
[362110503,1748002257134,-200.0,0.00021917,2]
[362110504,1748002257144,-500.0,0.00021917,2]
[362110505,1748002257153,-430.0,0.00021917,2]
[362110506,1748002257164,-151.0,0.00021918,7]
[362110507,1748002257174,-500.0,0.00021918,2]
[362110508,1748002257184,-500.0,0.00021918,2]
[362110509,1748002257194,-500.0,0.00021918,2]
[362110510,1748002257204,-500.0,0.00021918,2]
[362110511,1748002257214,-500.0,0.00021918,2]
[362110512,1748002257224,-500.0,0.00021918,2]
[362110514,1748002257242,-500.0,0.00021918,2]
[362110516,1748002257252,-500.0,0.00021918,2]
[362110518,1748002257262,-500.0,0.00021918,2]
[362110520,1748002257272,-500.0,0.00021918,2]
[362110522,1748002257282,-500.0,0.00021918,2]
[362110524,1748002257292,-631.71818155,0.00021918,2]
[362110526,1748002257302,-500.0,0.00021918,2]
[362110528,1748002257311,-450.39167617,0.00021969,6]
[362110530,1748002257321,-167.0,0.00022,2]
[362110532,1748002257331,-430.0,0.00022051,2]
[362110534,1748002257341,-200.815011,0.00022054,7]
[362110536,1748002257351,-200.815011,0.00022054,7]
[362110538,1748002257361,-430.0,0.00022083,2]
[362110540,1748002257371,-210.552032,0.00022083,2]
[362110542,1748002257381,-430.0,0.00022083,2]
[362110544,1748002257391,-430.0,0.00022084,2]
[362110546,1748002257401,-430.0,0.00022084,2]
[362110548,1748002257411,-561.81,0.00022084,2]
[362110550,1748002257421,-430.0,0.00022084,2]
[362110552,1748002257431,-543.07081955,0.00022084,2]
[362110554,1748002257442,-430.0,0.00022084,2]
[362110556,1748002257452,-430.0,0.00022084,2]
[362110558,1748002257462,-529.38,0.00022084,2]
[362110561,1748002257472,-430.0,0.00022084,2]
[362110563,1748002257484,-267.51,0.00022084,2]
[362110565,1748002257494,-430.0,0.00022094,2]
[362110567,1748002257504,-430.0,0.00022094,2]
[362110569,1748002257513,-430.0,0.00022095,2]
[362110571,1748002257524,-430.0,0.00022095,2]
[362110573,1748002257534,-430.0,0.00022095,2]
[362110575,1748002257545,-430.0,0.00022105,2]
[362110577,1748002257555,-430.0,0.00022105,2]
[362110579,1748002257564,-528.75,0.00022105,2]
[362110581,1748002257574,-430.0,0.00022105,2]
[362110583,1748002257584,-507.47,0.00022105,2]
[362110585,1748002257594,-476.89,0.00022105,2]
[362110587,1748002257604,-430.0,0.00022105,2]
[362110589,1748002257613,-430.0,0.00022105,2]
[362110591,1748002257623,-430.0,0.00022105,2]
[362110593,1748002257632,-430.0,0.00022131,2]
[362110595,1748002257642,-430.0,0.00022131,2]
[362110597,1748002257651,-466.22,0.00022131,2]
[362110599,1748002257661,-450.39167617,0.00022141,6]
[362110601,1748002257671,-200.0,0.00022191,30]
[362110603,1748002257681,-450.39167617,0.00022314,7]
[362110605,1748002257690,-430.0,0.00022325,2]
[362110607,1748002257700,-430.0,0.00022357,2]
[362110609,1748002257709,-430.0,0.00022357,2]
[362110611,1748002257719,-430.0,0.00022358,2]
[362110613,1748002257734,-430.0,0.00022358,2]
[362110615,1748002257746,-430.0,0.00022358,2]
[362110617,1748002257757,-306.36,0.00022358,2]
[362110619,1748002257767,-187.1,0.00022358,2]
[362110620,1748002257776,-430.0,0.00022358,2]
[362110622,1748002257786,-430.0,0.00022368,2]
[362110624,1748002257797,-427.01,0.00022368,2]
[362110626,1748002257807,-166.65,0.00022369,2]
[362110628,1748002257817,-430.0,0.00022369,2]
[362110630,1748002257827,-430.0,0.00022369,2]
[362110632,1748002257839,-882.28,0.00022372,3]
[362110634,1748002257849,-430.0,0.00022379,2]
[362110637,1748002257860,-430.0,0.00022379,2]
[362110639,1748002257870,-430.0,0.00022379,2]
[362110640,1748002257880,-277.07,0.00022379,2]
[362110642,1748002257890,-1064.96,0.0002238,3]
[362110644,1748002257900,-430.0,0.00022405,2]
[362110647,1748002257910,-430.0,0.00022405,2]
[362110649,1748002257920,-441.14,0.0002243,3]
[362110651,1748002257930,-846.67159378,0.0002245,2]
[362110653,1748002257939,-200.0,0.00022465,30]
[362110655,1748002257949,-450.39167617,0.00022486,7]
[362110657,1748002257959,-430.0,0.00022631,2]
[362110659,1748002257968,-430.0,0.00022631,2]
[362110660,1748002257980,-430.0,0.00022632,2]
[362110663,1748002257990,-430.0,0.00022632,2]
[362110665,1748002258000,-282.04,0.00022632,2]
[362110667,1748002258009,-183.45,0.00022632,2]
[362110669,1748002258018,-430.0,0.00022642,2]
[362110671,1748002258028,-491.09,0.00022643,2]
[362110673,1748002258037,-430.0,0.00022643,2]
[362110675,1748002258048,-430.0,0.00022653,2]
[362110677,1748002258058,-430.0,0.00022653,2]
[362110679,1748002258067,-405.22,0.00022653,2]
[362110681,1748002258076,-450.39167617,0.00022659,7]
[362110683,1748002258085,-151.0,0.00022666,7]
[362110685,1748002258094,-151.0,0.00022666,7]
[362110687,1748002258103,-430.0,0.00022679,2]
[362110689,1748002258113,-430.0,0.00022679,2]
[362110690,1748002258122,-900.0,0.00022683,2]
[362110693,1748002258132,-414.713,0.00022726,2]
[362110695,1748002258141,-200.0,0.00022739,30]
[362110697,1748002258151,-500.0,0.00022797,2]
[362110698,1748002258160,-500.0,0.00022797,2]
[362110700,1748002258170,-450.39167617,0.00022831,8]
[362110702,1748002258179,-151.0,0.00022877,7]
[362110704,1748002258189,-151.0,0.00022877,7]
[362110707,1748002258198,-151.0,0.00022877,7]
[362110709,1748002258208,-430.0,0.00022905,2]
[362110711,1748002258217,-430.0,0.00022905,2]
[362110713,1748002258231,-430.0,0.00022906,2]
[362110715,1748002258240,-430.0,0.00022906,2]
[362110717,1748002258249,-430.0,0.00022916,2]
[362110719,1748002258259,-430.0,0.00022917,2]
[362110721,1748002258268,-560.32,0.00022927,2]
[362110723,1748002258278,-430.0,0.00022927,2]
[362110725,1748002258288,-430.0,0.00022953,2]
[362110727,1748002258297,-430.0,0.00022953,2]
[362110729,1748002258307,-500.0,0.00023,2]
[362110731,1748002258317,-450.39167617,0.00023003,8]
[362110733,1748002258327,-200.0,0.00023013,30]
[362110735,1748002258337,-363.7241891,0.00023088,2]
[362110737,1748002258346,-363.7241891,0.00023088,2]
[362110739,1748002258356,-363.7241891,0.00023088,2]
[362110741,1748002258367,-363.7241891,0.00023088,2]
[362110743,1748002258377,-363.7241891,0.00023088,2]
[362110745,1748002258387,-2233.0,0.00023152,2]
[362110747,1748002258398,-707.0,0.00023152,2]
[362110749,1748002258409,-450.39167617,0.00023176,8]
[362110751,1748002258420,-430.0,0.00023179,2]
[362110753,1748002258430,-430.0,0.00023179,2]
[362110755,1748002258441,-430.0,0.0002318,2]
[362110757,1748002258451,-430.0,0.0002318,2]
[362110759,1748002258461,-430.0,0.0002319,2]
[362110761,1748002258472,-430.0,0.00023191,2]
[362110763,1748002258486,-430.0,0.00023201,2]
[362110765,1748002258496,-155.291792,0.00023217,8]
[362110767,1748002258507,-155.291792,0.00023223,8]
[362110769,1748002258518,-846.67159378,0.00023225,2]
[362110771,1748002258528,-415.11,0.00023227,2]
[362110773,1748002258537,-430.0,0.00023227,2]
[362110775,1748002258548,-151.0,0.00023287,7]
[362110777,1748002258558,-207.19736439,0.00023287,30]
[362110779,1748002258569,-4726.82,0.00023287,2]
[362110781,1748002258579,-200.815011,0.00023289,7]
[362110795,1748002258705,-200.815011,0.00023289,7]
[362110797,1748002258719,-309.962197,0.00023289,7]
[362110799,1748002258731,-309.962197,0.00023289,7]
[362110801,1748002258742,-450.39167617,0.00023348,9]
[362110803,1748002258760,-207.4,0.00023407,2]
[362110805,1748002258772,-430.0,0.00023453,2]
[362110807,1748002258783,-430.0,0.00023453,2]
[362110810,1748002258796,-430.0,0.00023454,2]
[362110812,1748002258806,-430.0,0.00023454,2]
[362110814,1748002258816,-430.0,0.00023464,2]
[362110816,1748002258826,-430.0,0.00023465,2]
[362110818,1748002258836,-430.0,0.00023475,2]
[362110819,1748002258846,-430.0,0.00023501,2]
[362110822,1748002258856,-450.39167617,0.00023521,9]
[362110824,1748002258867,-5000.0,0.00023596,3]
[362110826,1748002258877,-450.39167617,0.00023693,9]
[362110827,1748002258886,-430.0,0.00023727,2]
[362110829,1748002258896,-430.0,0.00023727,2]
[362110831,1748002258906,-216.34890787,0.00023728,2]
[362110834,1748002258916,-430.0,0.00023728,2]
[362110836,1748002258925,-797.238,0.00023737,2]
[362110838,1748002258935,-2200.0,0.00023737,2]
[362110840,1748002258944,-430.0,0.00023738,2]
[362110841,1748002258954,-430.0,0.00023739,2]
[362110844,1748002258965,-476.55589788,0.00023749,2]
[362110846,1748002258975,-430.0,0.00023775,2]
[362110848,1748002258988,-900.0,0.00023779,2]
[362110850,1748002258997,-426.0788617,0.00023835,4]
[362110852,1748002259007,-450.39167617,0.00023866,10]
[362110854,1748002259016,-226.75563946,0.000239,2]
[362110856,1748002259025,-500.0,0.00023934,2]
[362110858,1748002259036,-500.0,0.00023934,2]
[362110860,1748002259046,-430.0,0.00023945,2]
[362110862,1748002259055,-500.0,0.00024,2]
[362110864,1748002259067,-500.0,0.00024,2]
[362110866,1748002259077,-500.0,0.00024,2]
[362110868,1748002259086,-500.0,0.00024,2]
[362110870,1748002259096,-500.0,0.00024,2]
[362110872,1748002259106,-160.0,0.00024,10]
[362110874,1748002259115,-846.67159378,0.00024,2]
[362110876,1748002259125,-160.0,0.00024,10]
[362110878,1748002259134,-422.85710789,0.00024,10]
[362110879,1748002259144,-430.0,0.00024001,2]
[362110881,1748002259154,-430.0,0.00024001,2]
[362110884,1748002259164,-430.0,0.00024002,2]
[362110886,1748002259174,-430.0,0.00024012,2]
[362110888,1748002259184,-430.0,0.00024013,2]
[362110890,1748002259195,-450.39167617,0.00024038,10]
[362110891,1748002259205,-850.4781417,0.00024047,2]
[362110894,1748002259215,-155.291792,0.00024048,5]
[362110896,1748002259225,-430.0,0.00024049,2]
[362110898,1748002259238,-151.0,0.00024072,7]
[362110900,1748002259248,-151.0,0.00024072,7]
[362110902,1748002259257,-500.0,0.00024081,2]
[362110904,1748002259267,-500.0,0.00024081,2]
[362110906,1748002259278,-200.815011,0.00024081,7]
[362110908,1748002259287,-200.815011,0.00024081,7]
[362110910,1748002259297,-160.0,0.00024082,3]
[362110912,1748002259307,-151.0,0.00024082,7]
[362110914,1748002259317,-151.0,0.00024082,7]
[362110916,1748002259326,-151.0,0.00024082,7]
[362110918,1748002259336,-151.0,0.00024082,7]
[362110920,1748002259346,-1344.011738,0.00024082,2]
[362110922,1748002259355,-151.0,0.00024082,7]
[362110924,1748002259365,-265.08024,0.00024082,7]
[362110926,1748002259375,-200.815011,0.00024082,7]
[362110928,1748002259385,-200.815011,0.00024082,7]
[362110930,1748002259395,-309.962197,0.00024082,7]
[362110933,1748002259405,-309.962197,0.00024082,7]
[362110935,1748002259415,-155.0,0.00024082,2]
[362110937,1748002259425,-155.291792,0.00024082,2]
[362110939,1748002259434,-500.0,0.000241,2]
[362110941,1748002259443,-151.0,0.000241,7]
[362110943,1748002259452,-160.0,0.000241,3]
[362110944,1748002259462,-160.0,0.000241,3]
[362110947,1748002259473,-160.0,0.000241,7]
[362110949,1748002259485,-212.48480548,0.000241,3]
[362110951,1748002259495,-212.48480548,0.000241,7]
[362110953,1748002259504,-12647.66147447,0.000241,3]
[362110955,1748002259514,-160.0,0.000241,3]
[362110957,1748002259523,-894.64583333,0.000241,3]
[362110959,1748002259533,-160.0,0.000241,7]
[362110961,1748002259543,-894.64583333,0.000241,7]
[362110963,1748002259553,-422.85710789,0.000241,3]
[362110965,1748002259562,-422.85710789,0.000241,7]
[362110967,1748002259572,-500.0,0.00024157,2]
[362110969,1748002259582,-500.0,0.00024157,2]
[362110971,1748002259592,-500.0,0.00024157,2]
[362110972,1748002259601,-500.0,0.00024157,2]
[362110973,1748002259611,-500.0,0.00024167,2]
[362110974,1748002259620,-500.0,0.00024167,2]
[362110975,1748002259629,-500.0,0.00024177,2]
[362110976,1748002259639,-500.0,0.00024177,2]
[362110977,1748002259648,-500.0,0.00024177,2]
[362110979,1748002259659,-557.32313108,0.00024177,2]
[362110980,1748002259670,-151.0,0.00024178,7]
[362110983,1748002259680,-500.0,0.00024187,2]
[362110985,1748002259690,-500.0,0.00024197,2]
[362110987,1748002259700,-500.0,0.00024197,2]
[362110989,1748002259709,-500.0,0.00024197,2]
[362110991,1748002259718,-500.0,0.00024197,2]
[362110993,1748002259728,-500.0,0.00024197,2]
[362110995,1748002259740,-500.0,0.00024197,2]
[362110996,1748002259750,-151.0,0.00024199,7]
[362110998,1748002259761,-200.815011,0.000242,7]
[362111000,1748002259771,-200.815011,0.000242,7]
[362111002,1748002259781,-2102.21,0.000242,2]
[362111005,1748002259791,-450.39167617,0.0002421,10]
[362111007,1748002259801,-151.0,0.00024228,7]
[362111009,1748002259811,-430.0,0.00024275,2]
[362111011,1748002259821,-430.0,0.00024275,2]
[362111013,1748002259831,-430.0,0.00024276,2]
[362111015,1748002259841,-430.0,0.00024286,2]
[362111017,1748002259850,-500.0,0.00024287,2]
[362111019,1748002259861,-309.962197,0.00024287,7]
[362111021,1748002259871,-309.962197,0.00024287,7]
[362111023,1748002259881,-430.0,0.00024287,2]
[362111025,1748002259890,-6000.0,0.00024288,3]
[362111027,1748002259900,-151.0,0.00024288,7]
[362111029,1748002259910,-151.0,0.00024288,7]
[362111031,1748002259919,-153.0,0.00024321,2]
[362111033,1748002259929,-570.1314833,0.00024321,2]
[362111035,1748002259939,-176.1127665,0.00024321,2]
[362111036,1748002259948,-158.2090311,0.00024321,2]
[362111038,1748002259958,-158.2090311,0.00024321,2]
[362111040,1748002259968,-176.1127667,0.00024321,2]
[362111043,1748002259981,-158.2090311,0.00024321,2]
[362111045,1748002259991,-306.0,0.00024321,2]
[362111047,1748002260002,-176.1127665,0.00024321,2]
[362111049,1748002260012,-158.2090311,0.00024321,2]
[362111051,1748002260022,-176.1127667,0.00024321,2]
[362111053,1748002260032,-153.0,0.00024321,2]
[362111055,1748002260042,-570.1314833,0.00024321,2]
[362111057,1748002260052,-570.1314833,0.00024321,2]
[362111059,1748002260062,-570.1314833,0.00024321,2]
[362111061,1748002260073,-158.2090311,0.00024321,2]
[362111063,1748002260083,-430.0,0.00024323,2]
[362111065,1748002260094,-450.39167617,0.00024383,11]
[362111067,1748002260104,-1575.931691,0.00024401,2]
[362111069,1748002260114,-151.0,0.0002442,7]
[362111071,1748002260124,-500.0,0.00024436,2]
[362111073,1748002260134,-369.37891025,0.000245,2]
[362111075,1748002260144,-209.91,0.00024549,2]
[362111078,1748002260155,-430.0,0.00024549,2]
[362111080,1748002260165,-452.13,0.0002455,2]
[362111082,1748002260175,-155.291792,0.0002455,7]
[362111084,1748002260184,-450.39167617,0.00024555,11]
[362111086,1748002260194,-430.0,0.0002456,2]
[362111088,1748002260204,-430.0,0.00024561,2]
[362111090,1748002260215,-345.95,0.00024597,2]
[362111092,1748002260225,-155.0,0.0002463,2]
[362111094,1748002260237,-258.2473515,0.00024658,2]
[362111096,1748002260247,-450.39167617,0.00024728,11]
[362111098,1748002260257,-155.291792,0.00024731,5]
[362111100,1748002260267,-155.291792,0.00024748,11]
[362111103,1748002260278,-155.291792,0.0002475,3]
[362111105,1748002260289,-570.1314833,0.00024767,2]
[362111107,1748002260300,-215.0738,0.00024776,2]
[362111109,1748002260311,-155.291792,0.00024789,11]
[362111111,1748002260321,-151.0,0.000248,7]
[362111113,1748002260331,-151.0,0.000248,7]
[362111115,1748002260341,-430.0,0.00024823,2]
[362111117,1748002260351,-430.0,0.00024834,2]
[362111119,1748002260361,-246.88,0.00024835,2]
[362111121,1748002260371,-200.0,0.0002486,11]
[362111123,1748002260382,-600.0,0.00024873,2]
[362111125,1748002260392,-500.0,0.00024873,2]
[362111127,1748002260402,-900.0,0.00024875,7]
[362111129,1748002260412,-500.0,0.00024899,2]
[362111131,1748002260422,-500.0,0.00024899,2]
[362111133,1748002260432,-500.0,0.00024899,2]
[362111136,1748002260442,-500.0,0.00024899,2]
[362111138,1748002260452,-500.0,0.00024899,2]
[362111139,1748002260461,-225.21673218,0.00024899,2]
[362111141,1748002260471,-10000.0,0.000249,7]
[362111143,1748002260481,-2000.0,0.000249,2]
[362111146,1748002260490,-250.0,0.000249,2]
[362111148,1748002260500,-215.5,0.000249,2]
[362111150,1748002260510,-151.0,0.000249,7]
[362111163,1748002260633,-160.0,0.000249,7]
[362111165,1748002260644,-151.0,0.000249,7]
[362111168,1748002260658,-151.0,0.000249,7]
[362111170,1748002260669,-151.0,0.000249,7]
[362111172,1748002260679,-151.0,0.000249,7]
[362111174,1748002260689,-229.974088,0.000249,7]